[Event "*** Titled Tuesday Blitz"]
[Site "Chess.com"]
[Date "2019.08.06"]
[Round "4"]
[White "HansCoolNiemann"]
[Black "VladDobrov"]
[Result "0-1"]
[WhiteElo "2702"]
[BlackElo "2936"]
[TimeControl "180+2"]
[EndTime "13:53:17 PDT"]
[Termination "VladDobrov won by resignation"]

1. d4 {[%clk 0:03:01]} 1... Nf6 {[%clk 0:03:00.7]} 2. c4 {[%clk 0:02:58.9]} 2...
e6 {[%clk 0:03:02.2]} 3. Nc3 {[%clk 0:02:58.8]} 3... Bb4 {[%clk 0:03:03]} 4. g3
{[%clk 0:03:00.4]} 4... c5 {[%clk 0:03:03.4]} 5. Nf3 {[%clk 0:02:58.4]} 5...
cxd4 {[%clk 0:03:04.6]} 6. Nxd4 {[%clk 0:03:00.3]} 6... Qc7 {[%clk 0:03:05.7]}
7. Qb3 {[%clk 0:02:49.1]} 7... Bc5 {[%clk 0:03:00.9]} 8. Be3 {[%clk 0:02:42.9]}
8... a6 {[%clk 0:02:57.7]} 9. Nc2 {[%clk 0:02:41.4]} 9... b6 {[%clk 0:02:52.3]}
10. Bg2 {[%clk 0:02:40.4]} 10... Nc6 {[%clk 0:02:49.7]} 11. Bxc5 {[%clk
0:02:16.9]} 11... bxc5 {[%clk 0:02:51.6]} 12. Qa3 {[%clk 0:02:18.3]} 12... Nb4
{[%clk 0:01:52.1]} 13. Nxb4 {[%clk 0:01:22.4]} 13... cxb4 {[%clk 0:01:53.2]} 14.
Nb5 {[%clk 0:01:24]} 14... Qc5 {[%clk 0:01:30.3]} 15. Qa5 {[%clk 0:01:18]} 15...
Ra7 {[%clk 0:00:49.5]} 16. Rc1 {[%clk 0:00:21.6]} 16... axb5 {[%clk 0:00:47.1]}
17. Qxb5 {[%clk 0:00:21.8]} 17... Qxb5 {[%clk 0:00:47.4]} 18. cxb5 {[%clk
0:00:23.7]} 18... Ke7 {[%clk 0:00:48.7]} 19. b6 {[%clk 0:00:24.5]} 19... Rxa2
{[%clk 0:00:45.9]} 20. b7 {[%clk 0:00:25.5]} 20... Bxb7 {[%clk 0:00:47.3]} 21.
Bxb7 {[%clk 0:00:27.3]} 21... Rxb2 {[%clk 0:00:47.6]} 22. Bf3 {[%clk 0:00:27.2]}
22... Rb8 {[%clk 0:00:41.5]} 23. O-O {[%clk 0:00:28]} 23... b3 {[%clk
0:00:42.5]} 24. Rc3 {[%clk 0:00:29.5]} 24... Ra2 {[%clk 0:00:41.4]} 25. Rcc1
{[%clk 0:00:19]} 25... b2 {[%clk 0:00:42.5]} 26. Rb1 {[%clk 0:00:20.5]} 26... d5
{[%clk 0:00:40.8]} 27. Rfd1 {[%clk 0:00:21.5]} 27... Rb4 {[%clk 0:00:37.6]} 28.
Kf1 {[%clk 0:00:21.6]} 28... Kd6 {[%clk 0:00:38.1]} 29. Ke1 {[%clk 0:00:22.7]}
29... e5 {[%clk 0:00:38.5]} 30. Kd2 {[%clk 0:00:23.8]} 30... e4 {[%clk
0:00:39.5]} 31. Bg2 {[%clk 0:00:25.3]} 31... d4 {[%clk 0:00:39.5]} 32. Kc2
{[%clk 0:00:25.6]} 32... Ke5 {[%clk 0:00:40.6]} 33. f4+ {[%clk 0:00:26.2]} 33...
Kd5 {[%clk 0:00:41.1]} 34. e3 {[%clk 0:00:27.6]} 34... d3+ {[%clk 0:00:42.1]}
35. Rxd3+ {[%clk 0:00:28.6]} 35... Kc5 {[%clk 0:00:37.6]} 36. Rd8 {[%clk
0:00:27.4]} 36... Nd5 {[%clk 0:00:34.9]} 37. Rc8+ {[%clk 0:00:23.5]} 37... Kd6
{[%clk 0:00:34.4]} 38. Rd8+ {[%clk 0:00:24.6]} 38... Kc6 {[%clk 0:00:32.6]} 39.
Rc8+ {[%clk 0:00:19]} 39... Kb7 {[%clk 0:00:31.2]} 40. Rc5 {[%clk 0:00:17.2]}
40... Nxe3+ {[%clk 0:00:31.9]} 41. Kc3 {[%clk 0:00:18.4]} 41... Rba4 {[%clk
0:00:22.2]} 42. Bh1 {[%clk 0:00:19.9]} 42... Kb6 {[%clk 0:00:21.8]} 43. Rc8
{[%clk 0:00:19.5]} 43... Nd5+ {[%clk 0:00:23.2]} 44. Kc2 {[%clk 0:00:20]} 44...
Kb7 {[%clk 0:00:21.3]} 45. Re8 {[%clk 0:00:20.1]} 45... f5 {[%clk 0:00:22.2]}
46. g4 {[%clk 0:00:21.4]} 46... g6 {[%clk 0:00:23.1]} 47. gxf5 {[%clk
0:00:22.8]} 47... gxf5 {[%clk 0:00:25]} 48. Re5 {[%clk 0:00:24.4]} 48... Kc6
{[%clk 0:00:25.4]} 49. Rxb2 {[%clk 0:00:24.2]} 49... Rxb2+ {[%clk 0:00:25.8]}
50. Kxb2 {[%clk 0:00:26.1]} 50... Ne3 {[%clk 0:00:23.8]} 51. Kc3 {[%clk
0:00:27.1]} 51... Kd6 {[%clk 0:00:24.7]} 52. Kb3 {[%clk 0:00:19.8]} 52... Ra1
{[%clk 0:00:25.6]} 53. Bxe4 {[%clk 0:00:20.9]} 53... fxe4 {[%clk 0:00:25.7]} 54.
Rxe4 {[%clk 0:00:22.8]} 54... Nf5 {[%clk 0:00:26.5]} 55. Re5 {[%clk 0:00:23.7]}
55... Ng7 {[%clk 0:00:23.4]} 56. Rg5 {[%clk 0:00:24.6]} 56... Ra7 {[%clk
0:00:22.4]} 57. Kc4 {[%clk 0:00:23.7]} 57... Ke6 {[%clk 0:00:23.8]} 58. Kd4
{[%clk 0:00:24.5]} 58... Kf6 {[%clk 0:00:25.2]} 59. Ke4 {[%clk 0:00:25.7]} 59...
Re7+ {[%clk 0:00:26.5]} 60. Kf3 {[%clk 0:00:26.8]} 60... h6 {[%clk 0:00:28]} 61.
Ra5 {[%clk 0:00:27.7]} 61... Nf5 {[%clk 0:00:29.4]} 62. Kg4 {[%clk 0:00:28.2]}
62... Ng7 {[%clk 0:00:25.7]} 63. Ra6+ {[%clk 0:00:29.2]} 63... Re6 {[%clk
0:00:27]} 64. Ra5 {[%clk 0:00:30.7]} 64... Rc6 {[%clk 0:00:25.7]} 65. h4 {[%clk
0:00:30.7]} 65... h5+ {[%clk 0:00:25.3]} 66. Kf3 {[%clk 0:00:31.7]} 66... Nf5
{[%clk 0:00:26.5]} 67. Ra8 {[%clk 0:00:33.2]} 67... Rc3+ {[%clk 0:00:27.3]} 68.
Ke4 {[%clk 0:00:34.2]} 68... Rc4+ {[%clk 0:00:27.8]} 69. Kf3 {[%clk 0:00:33.6]}
69... Nxh4+ {[%clk 0:00:27.9]} 70. Kg3 {[%clk 0:00:35]} 70... Nf5+ {[%clk
0:00:26.8]} 71. Kf3 {[%clk 0:00:36.5]} 71... Rc3+ {[%clk 0:00:28.1]} 72. Ke4
{[%clk 0:00:37.8]} 72... Re3+ {[%clk 0:00:29.2]} 73. Kd5 {[%clk 0:00:39]} 73...
h4 {[%clk 0:00:30.3]} 74. Rf8+ {[%clk 0:00:39.1]} 74... Kg6 {[%clk 0:00:31.7]}
75. Rg8+ {[%clk 0:00:39.6]} 75... Kf7 {[%clk 0:00:33.2]} 76. Rh8 {[%clk
0:00:39.4]} 76... h3 {[%clk 0:00:32.8]} 77. Rh7+ {[%clk 0:00:40.7]} 77... Kg6
{[%clk 0:00:34.1]} 78. Rh8 {[%clk 0:00:42.3]} 78... Nh6 {[%clk 0:00:35.3]} 79.
Kd4 {[%clk 0:00:40.1]} 79... Ra3 {[%clk 0:00:35.5]} 80. Ke4 {[%clk 0:00:40.2]}
80... h2 {[%clk 0:00:35.7]} 81. f5+ {[%clk 0:00:40.5]} 81... Kh5 {[%clk
0:00:36.4]} 0-1

[Event "*** Titled Tuesday Blitz"]
[Site "Chess.com"]
[Date "2019.08.06"]
[Round "4"]
[White "kasparicy"]
[Black "bluejay1897"]
[Result "1-0"]
[WhiteElo "2405"]
[BlackElo "2272"]
[TimeControl "180+2"]
[EndTime "13:53:18 PDT"]
[Termination "kasparicy won by checkmate"]

1. e4 {[%clk 0:03:01.9]} 1... c5 {[%clk 0:03:00.3]} 2. Nf3 {[%clk 0:03:02.5]}
2... e6 {[%clk 0:03:01]} 3. d4 {[%clk 0:02:48.7]} 3... cxd4 {[%clk 0:03:02.9]}
4. Nxd4 {[%clk 0:02:50.6]} 4... Nc6 {[%clk 0:03:03.8]} 5. f4 {[%clk 0:02:47.1]}
5... Bc5 {[%clk 0:02:50.4]} 6. Nb3 {[%clk 0:02:46.6]} 6... Bb6 {[%clk
0:02:50.1]} 7. Qf3 {[%clk 0:02:45.6]} 7... Nge7 {[%clk 0:02:47.7]} 8. Nc3 {[%clk
0:02:46.9]} 8... O-O {[%clk 0:02:39.9]} 9. Be3 {[%clk 0:02:46.8]} 9... a5 {[%clk
0:02:03.9]} 10. Bb5 {[%clk 0:02:30.7]} 10... Na7 {[%clk 0:01:56]} 11. Bd3 {[%clk
0:02:27.2]} 11... Nac6 {[%clk 0:01:51.3]} 12. O-O {[%clk 0:02:22.9]} 12... a4
{[%clk 0:01:47.3]} 13. Nc5 {[%clk 0:02:23.1]} 13... a3 {[%clk 0:01:44.8]} 14. b3
{[%clk 0:02:18.3]} 14... Nb4 {[%clk 0:01:41.4]} 15. Kh1 {[%clk 0:02:14.2]} 15...
Nxd3 {[%clk 0:01:36]} 16. cxd3 {[%clk 0:02:14.9]} 16... d6 {[%clk 0:01:33.1]}
17. N5a4 {[%clk 0:02:14.6]} 17... Ba5 {[%clk 0:01:23.7]} 18. Rac1 {[%clk
0:02:08.5]} 18... Bd7 {[%clk 0:01:22.6]} 19. Ne2 {[%clk 0:02:04.6]} 19... Bxa4
{[%clk 0:01:17.9]} 20. bxa4 {[%clk 0:02:06.5]} 20... d5 {[%clk 0:01:15.5]} 21.
f5 {[%clk 0:02:02.8]} 21... dxe4 {[%clk 0:01:14.8]} 22. dxe4 {[%clk 0:02:03.5]}
22... exf5 {[%clk 0:01:12.2]} 23. exf5 {[%clk 0:02:05.4]} 23... Qd5 {[%clk
0:01:11.3]} 24. Bc5 {[%clk 0:01:38.7]} 24... Rfe8 {[%clk 0:00:56.6]} 25. Qg4
{[%clk 0:01:20.5]} 25... Qd2 {[%clk 0:00:38.5]} 26. Nf4 {[%clk 0:01:08.2]} 26...
f6 {[%clk 0:00:21.3]} 27. Nh5 {[%clk 0:00:51.8]} 27... Qh6 {[%clk 0:00:21.2]}
28. Be3 {[%clk 0:00:51.9]} 28... g5 {[%clk 0:00:22.3]} 29. fxg6 {[%clk 0:00:52]}
29... Qxg6 {[%clk 0:00:22.5]} 30. Nxf6+ {[%clk 0:00:53]} 30... Kh8 {[%clk
0:00:23.6]} 31. Qxg6 {[%clk 0:00:53.2]} 31... Nxg6 {[%clk 0:00:24.1]} 32. Nxe8
{[%clk 0:00:54.7]} 32... Rxe8 {[%clk 0:00:25.7]} 33. Bd4+ {[%clk 0:00:56.2]}
33... Kg8 {[%clk 0:00:27.2]} 34. Bc5 {[%clk 0:00:52.3]} 34... Re2 {[%clk
0:00:26.4]} 35. Rf2 {[%clk 0:00:47.8]} 35... Re4 {[%clk 0:00:24.7]} 36. Bxa3
{[%clk 0:00:43]} 36... Rxa4 {[%clk 0:00:25.5]} 37. Rc8+ {[%clk 0:00:44.2]} 37...
Kg7 {[%clk 0:00:26.3]} 38. Bb2+ {[%clk 0:00:43]} 38... Kh6 {[%clk 0:00:27.8]}
39. h3 {[%clk 0:00:39.1]} 39... Re4 {[%clk 0:00:27.8]} 40. Rf7 {[%clk 0:00:15]}
40... Re1+ {[%clk 0:00:28]} 41. Kh2 {[%clk 0:00:16.3]} 41... Bb6 {[%clk
0:00:21.6]} 42. Bc1+ {[%clk 0:00:16.9]} 42... Be3 {[%clk 0:00:17.8]} 43. Bxe3+
{[%clk 0:00:16.5]} 43... Rxe3 {[%clk 0:00:19.7]} 44. Rcc7 {[%clk 0:00:18.4]}
44... Ra3 {[%clk 0:00:20.7]} 45. Rxh7+ {[%clk 0:00:19.3]} 45... Kg5 {[%clk
0:00:22.4]} 46. Rxb7 {[%clk 0:00:20.9]} 46... Rxa2 {[%clk 0:00:23.6]} 47. Rb5+
{[%clk 0:00:22.2]} 47... Kf6 {[%clk 0:00:23.9]} 48. Rh6 {[%clk 0:00:22.8]} 48...
Kg7 {[%clk 0:00:24.7]} 49. Rhh5 {[%clk 0:00:22.9]} 49... Nf4 {[%clk 0:00:25.8]}
50. Rhg5+ {[%clk 0:00:23.6]} 50... Kh6 {[%clk 0:00:26.9]} 51. Rg4 {[%clk
0:00:25]} 51... Ne2 {[%clk 0:00:25.2]} 52. Rb8 {[%clk 0:00:26.1]} 52... Kh7
{[%clk 0:00:25.3]} 53. Rf8 {[%clk 0:00:21.6]} 53... Ra1 {[%clk 0:00:24.9]} 54.
Rf2 {[%clk 0:00:21.6]} 54... Nc3 {[%clk 0:00:25.4]} 55. Rf5 {[%clk 0:00:19.1]}
55... Kh6 {[%clk 0:00:25.4]} 56. Rfg5 {[%clk 0:00:18.7]} 56... Ne2 {[%clk
0:00:23.8]} 57. Rg8 {[%clk 0:00:17.8]} 57... Kh7 {[%clk 0:00:25]} 58. R8g5
{[%clk 0:00:17.8]} 58... Kh6 {[%clk 0:00:25.5]} 59. Rg6+ {[%clk 0:00:19.7]}
59... Kh7 {[%clk 0:00:26.7]} 60. Re6 {[%clk 0:00:20.6]} 60... Nc3 {[%clk
0:00:26.4]} 61. Kg3 {[%clk 0:00:21.5]} 61... Nd5 {[%clk 0:00:24.6]} 62. Kh4
{[%clk 0:00:21.8]} 62... Ra7 {[%clk 0:00:22.6]} 63. Re5 {[%clk 0:00:22]} 63...
Nf6 {[%clk 0:00:23.7]} 64. Rgg5 {[%clk 0:00:22.6]} 64... Ra4+ {[%clk 0:00:23.8]}
65. g4 {[%clk 0:00:23.8]} 65... Ra3 {[%clk 0:00:23.1]} 66. Re6 {[%clk
0:00:24.2]} 66... Nd5 {[%clk 0:00:23.5]} 67. Rf5 {[%clk 0:00:22.8]} 67... Ne3
{[%clk 0:00:24.1]} 68. Rf7+ {[%clk 0:00:23.6]} 68... Kg8 {[%clk 0:00:25.4]} 69.
Rb7 {[%clk 0:00:24.2]} 69... Ng2+ {[%clk 0:00:26.1]} 70. Kg5 {[%clk 0:00:25.4]}
70... Ra5+ {[%clk 0:00:27.5]} 71. Kf6 {[%clk 0:00:25]} 71... Nf4 {[%clk
0:00:28.6]} 72. Re8# {[%clk 0:00:25.5]} 1-0

[Event "*** Titled Tuesday Blitz"]
[Site "Chess.com"]
[Date "2019.08.06"]
[Round "4"]
[White "FearNoEvil12"]
[Black "warmoatmeal"]
[Result "1-0"]
[WhiteElo "2005"]
[BlackElo "2046"]
[TimeControl "180+2"]
[EndTime "13:53:19 PDT"]
[Termination "FearNoEvil12 won by resignation"]

1. e4 {[%clk 0:03:01.9]} 1... c5 {[%clk 0:02:59.4]} 2. Nc3 {[%clk 0:03:01.5]}
2... Nc6 {[%clk 0:02:59.3]} 3. f4 {[%clk 0:03:03]} 3... e6 {[%clk 0:02:59.8]} 4.
Nf3 {[%clk 0:03:04.4]} 4... g6 {[%clk 0:03:00.7]} 5. Bc4 {[%clk 0:03:04.5]} 5...
Bg7 {[%clk 0:03:01.4]} 6. f5 {[%clk 0:03:06.1]} 6... d5 {[%clk 0:02:54.2]} 7.
fxg6 {[%clk 0:03:04.7]} 7... dxc4 {[%clk 0:02:35.6]} 8. gxf7+ {[%clk 0:03:04.4]}
8... Kxf7 {[%clk 0:02:36.8]} 9. O-O {[%clk 0:03:05.4]} 9... Ke8 {[%clk
0:02:36.9]} 10. d3 {[%clk 0:03:03]} 10... cxd3 {[%clk 0:02:37.4]} 11. cxd3
{[%clk 0:03:03.2]} 11... Nge7 {[%clk 0:02:37.2]} 12. Ng5 {[%clk 0:03:02.6]}
12... Rf8 {[%clk 0:02:21.2]} 13. Be3 {[%clk 0:02:51.3]} 13... h6 {[%clk
0:02:17.1]} 14. Qh5+ {[%clk 0:02:49.4]} 14... Kd7 {[%clk 0:02:16.1]} 15. Nf7
{[%clk 0:02:41.6]} 15... Qe8 {[%clk 0:01:44.3]} 16. Qxc5 {[%clk 0:02:35.9]}
16... Rxf7 {[%clk 0:01:42.7]} 17. Nb5 {[%clk 0:02:36.7]} 17... Be5 {[%clk
0:01:37.6]} 18. d4 {[%clk 0:02:25.9]} 18... Bb8 {[%clk 0:01:05.7]} 19. d5 {[%clk
0:02:25.4]} 19... exd5 {[%clk 0:01:03.2]} 20. exd5 {[%clk 0:02:25.3]} 20... Ne5
{[%clk 0:01:03.8]} 21. Rxf7 {[%clk 0:02:02.4]} 21... Qxf7 {[%clk 0:01:03.5]} 22.
Rc1 {[%clk 0:02:03.8]} 22... Qh5 {[%clk 0:00:56]} 23. d6 {[%clk 0:01:52.3]}
23... N7c6 {[%clk 0:00:49]} 24. Nd4 {[%clk 0:01:34.4]} 24... Nf3+ {[%clk
0:00:46.2]} 25. Nxf3 {[%clk 0:01:33.6]} 25... Qxc5 {[%clk 0:00:46.6]} 26. Bxc5
{[%clk 0:01:33.9]} 26... b6 {[%clk 0:00:37.1]} 27. Ba3 {[%clk 0:01:33.3]} 27...
b5 {[%clk 0:00:27.5]} 28. Rxc6 {[%clk 0:01:28.3]} 28... Kxc6 {[%clk 0:00:28]}
29. Ne5+ {[%clk 0:01:29.8]} 29... Kb7 {[%clk 0:00:28.2]} 30. d7 {[%clk
0:01:30.3]} 30... Bxd7 {[%clk 0:00:29.1]} 31. Nxd7 {[%clk 0:01:30.9]} 31... Bf4
{[%clk 0:00:29.3]} 32. Nc5+ {[%clk 0:01:26.5]} 32... Kb6 {[%clk 0:00:25.2]} 33.
Nd3 {[%clk 0:01:23.9]} 33... Be3+ {[%clk 0:00:25.4]} 34. Kf1 {[%clk 0:01:24.9]}
34... Bd4 {[%clk 0:00:21.6]} 35. b3 {[%clk 0:01:22.4]} 35... a5 {[%clk
0:00:21.5]} 36. Ke2 {[%clk 0:01:22.6]} 36... b4 {[%clk 0:00:21.7]} 37. Bc1
{[%clk 0:01:23.9]} 37... Re8+ {[%clk 0:00:22]} 38. Kd1 {[%clk 0:01:21]} 38...
Be3 {[%clk 0:00:20.7]} 39. Bb2 {[%clk 0:01:20.9]} 39... Rd8 {[%clk 0:00:21.4]}
40. Ke2 {[%clk 0:01:21.4]} 40... Bd4 {[%clk 0:00:21.7]} 41. Bc1 {[%clk
0:01:20.8]} 41... h5 {[%clk 0:00:21.3]} 42. h3 {[%clk 0:01:19.9]} 42... Re8+
{[%clk 0:00:20.6]} 43. Kd1 {[%clk 0:01:19.4]} 43... Bc3 {[%clk 0:00:21.2]} 44.
Bf4 {[%clk 0:01:15.3]} 44... Rg8 {[%clk 0:00:19.4]} 45. g3 {[%clk 0:01:14.8]}
45... Bd4 {[%clk 0:00:18.2]} 46. Ke2 {[%clk 0:01:15]} 46... Kb5 {[%clk
0:00:19.2]} 47. Kf3 {[%clk 0:01:15.5]} 47... a4 {[%clk 0:00:19.8]} 48. g4 {[%clk
0:01:11.2]} 48... hxg4+ {[%clk 0:00:20]} 49. hxg4 {[%clk 0:01:11]} 49... axb3
{[%clk 0:00:20.3]} 50. axb3 {[%clk 0:01:10.8]} 50... Rc8 {[%clk 0:00:21]} 51.
Bd2 {[%clk 0:01:06.4]} 51... Bc3 {[%clk 0:00:18.8]} 52. Be3 {[%clk 0:01:06.8]}
52... Bg7 {[%clk 0:00:17.4]} 53. Bd2 {[%clk 0:01:02.5]} 53... Rd8 {[%clk
0:00:18.2]} 54. Ke4 {[%clk 0:01:02.4]} 54... Rd4+ {[%clk 0:00:17.5]} 55. Ke3
{[%clk 0:01:03.2]} 55... Rxg4 {[%clk 0:00:16.7]} 56. Be1 {[%clk 0:01:01.4]}
56... Bh6+ {[%clk 0:00:16.3]} 57. Ke2 {[%clk 0:01:01.8]} 57... Bf8 {[%clk
0:00:14.5]} 58. Kf3 {[%clk 0:01:00.9]} 58... Rd4 {[%clk 0:00:14.6]} 59. Ke3
{[%clk 0:01:01.1]} 59... Rd7 {[%clk 0:00:16]} 60. Nb2 {[%clk 0:00:58.7]} 60...
Rc7 {[%clk 0:00:15.3]} 61. Nc4 {[%clk 0:00:58.5]} 61... Bh6+ {[%clk 0:00:16]}
62. Kd3 {[%clk 0:00:58.4]} 62... Rd7+ {[%clk 0:00:16.1]} 63. Kc2 {[%clk
0:00:58.5]} 63... Rf7 {[%clk 0:00:14.7]} 64. Nd6+ {[%clk 0:00:54.4]} 64... Kc6
{[%clk 0:00:15.5]} 65. Nxf7 {[%clk 0:00:55.8]} 65... Bf8 {[%clk 0:00:16.5]} 66.
Kd3 {[%clk 0:00:55.8]} 66... Kb5 {[%clk 0:00:17]} 67. Kd4 {[%clk 0:00:54.6]}
67... Bg7+ {[%clk 0:00:17.7]} 68. Kd5 {[%clk 0:00:55.1]} 68... Bc3 {[%clk
0:00:18]} 69. Nd6+ {[%clk 0:00:55.3]} 69... Kb6 {[%clk 0:00:15.6]} 70. Bf2+
{[%clk 0:00:55.7]} 70... Ka5 {[%clk 0:00:14.8]} 71. Kc4 {[%clk 0:00:55.4]} 71...
Bd2 {[%clk 0:00:14.6]} 72. Bc5 {[%clk 0:00:54.4]} 72... Be1 {[%clk 0:00:14.8]}
73. Nf5 {[%clk 0:00:49.2]} 73... Bd2 {[%clk 0:00:12]} 74. Nd4 {[%clk 0:00:49.5]}
74... Bc3 {[%clk 0:00:11.2]} 75. Nc2 {[%clk 0:00:50.7]} 75... Bd2 {[%clk
0:00:10.7]} 76. Bxb4+ {[%clk 0:00:50.5]} 76... Bxb4 {[%clk 0:00:09.1]} 77. Nxb4
{[%clk 0:00:51.8]} 77... Kb6 {[%clk 0:00:06.6]} 78. Nd3 {[%clk 0:00:52.7]} 78...
Kc6 {[%clk 0:00:02.7]} 79. b4 {[%clk 0:00:53.8]} 79... Kd6 {[%clk 0:00:04.3]}
80. b5 {[%clk 0:00:54.5]} 80... Kc7 {[%clk 0:00:06.2]} 81. Kc5 {[%clk
0:00:54.9]} 81... Kb7 {[%clk 0:00:08.1]} 1-0

[Event "*** Titled Tuesday Blitz"]
[Site "Chess.com"]
[Date "2019.08.06"]
[Round "4"]
[White "marcodobrikov"]
[Black "vanea_03"]
[Result "1/2-1/2"]
[WhiteElo "2434"]
[BlackElo "2656"]
[TimeControl "180+2"]
[EndTime "13:53:49 PDT"]
[Termination "Game drawn by repetition"]

1. e4 {[%clk 0:03:01.9]} 1... e5 {[%clk 0:02:57.5]} 2. Nf3 {[%clk 0:03:02.7]}
2... Nc6 {[%clk 0:02:58.7]} 3. Bc4 {[%clk 0:03:01.5]} 3... Nf6 {[%clk
0:02:59.5]} 4. Ng5 {[%clk 0:03:02.1]} 4... d5 {[%clk 0:03:00.2]} 5. exd5 {[%clk
0:03:03]} 5... Na5 {[%clk 0:03:01.8]} 6. Bb5+ {[%clk 0:03:03.8]} 6... c6 {[%clk
0:03:03.5]} 7. dxc6 {[%clk 0:03:05.6]} 7... bxc6 {[%clk 0:03:05.4]} 8. Be2
{[%clk 0:03:06.2]} 8... h6 {[%clk 0:02:53.4]} 9. Nh3 {[%clk 0:03:05.4]} 9... Bc5
{[%clk 0:02:48.5]} 10. d3 {[%clk 0:03:03.5]} 10... O-O {[%clk 0:02:43.8]} 11.
Nc3 {[%clk 0:03:01.7]} 11... Rb8 {[%clk 0:02:38.6]} 12. O-O {[%clk 0:02:58.9]}
12... Bxh3 {[%clk 0:02:37.9]} 13. gxh3 {[%clk 0:02:59.7]} 13... Rb4 {[%clk
0:02:28]} 14. Bf3 {[%clk 0:02:58.6]} 14... Rh4 {[%clk 0:02:24.3]} 15. Bg2 {[%clk
0:02:58.3]} 15... Nh5 {[%clk 0:02:17.5]} 16. Kh1 {[%clk 0:02:42.6]} 16... Nf4
{[%clk 0:02:13.1]} 17. Qf3 {[%clk 0:02:33.4]} 17... Bd4 {[%clk 0:01:49.8]} 18.
Be3 {[%clk 0:02:27.6]} 18... Ne6 {[%clk 0:01:39.4]} 19. Rg1 {[%clk 0:02:24.9]}
19... Ng5 {[%clk 0:01:33.8]} 20. Qg3 {[%clk 0:02:24.4]} 20... Qf6 {[%clk
0:01:28.5]} 21. Bxd4 {[%clk 0:02:18.5]} 21... Rxd4 {[%clk 0:01:28.4]} 22. Ne4
{[%clk 0:02:18.6]} 22... Nxe4 {[%clk 0:01:25.3]} 23. Bxe4 {[%clk 0:02:18.6]}
23... Nb7 {[%clk 0:01:22.1]} 24. c3 {[%clk 0:01:35.9]} 24... Rd6 {[%clk
0:01:21.9]} 25. Rg2 {[%clk 0:01:27.2]} 25... Nc5 {[%clk 0:01:19.4]} 26. Rag1
{[%clk 0:01:27.7]} 26... g6 {[%clk 0:01:17.8]} 27. Qe3 {[%clk 0:01:24.9]} 27...
Nxe4 {[%clk 0:01:12.5]} 28. dxe4 {[%clk 0:01:23.7]} 28... Kg7 {[%clk 0:01:05.2]}
29. Qxa7 {[%clk 0:01:12]} 29... Qf3 {[%clk 0:01:06.4]} 30. Qe3 {[%clk
0:01:11.8]} 30... Qxe3 {[%clk 0:01:02.7]} 31. fxe3 {[%clk 0:01:12.2]} 31... Ra8
{[%clk 0:01:04.5]} 32. a3 {[%clk 0:01:12.2]} 32... Rd3 {[%clk 0:01:04.4]} 33.
Re2 {[%clk 0:01:13.1]} 33... c5 {[%clk 0:01:03]} 34. Kg2 {[%clk 0:01:12.1]}
34... c4 {[%clk 0:01:00.9]} 35. Kf3 {[%clk 0:01:12.9]} 35... Rb8 {[%clk
0:01:00.4]} 36. Ra1 {[%clk 0:01:08.3]} 36... Rd6 {[%clk 0:00:57.1]} 37. Rc2
{[%clk 0:00:53.8]} 37... Rdb6 {[%clk 0:00:45.6]} 38. Ra2 {[%clk 0:00:54.6]}
38... f5 {[%clk 0:00:42.5]} 39. exf5 {[%clk 0:00:54]} 39... gxf5 {[%clk
0:00:44.4]} 40. Rd2 {[%clk 0:00:52.7]} 40... Kf6 {[%clk 0:00:45.1]} 41. a4
{[%clk 0:00:50.9]} 41... Ra6 {[%clk 0:00:45.9]} 42. Rd5 {[%clk 0:00:47.8]} 42...
Rc8 {[%clk 0:00:34.5]} 43. a5 {[%clk 0:00:46.8]} 43... Ke6 {[%clk 0:00:35.1]}
44. Rb5 {[%clk 0:00:47.5]} 44... Kd6 {[%clk 0:00:34.4]} 45. Ra4 {[%clk
0:00:48.1]} 45... Rc5 {[%clk 0:00:33.7]} 46. Rbb4 {[%clk 0:00:30.9]} 46... Kd5
{[%clk 0:00:32.3]} 47. h4 {[%clk 0:00:24.1]} 47... h5 {[%clk 0:00:25.1]} 48. h3
{[%clk 0:00:25]} 48... f4 {[%clk 0:00:12.3]} 49. e4+ {[%clk 0:00:20.3]} 49...
Kd6 {[%clk 0:00:12.6]} 50. Rxc4 {[%clk 0:00:21.2]} 50... Rcxa5 {[%clk
0:00:13.8]} 51. Rxa5 {[%clk 0:00:21.3]} 51... Rxa5 {[%clk 0:00:15.7]} 52. b4
{[%clk 0:00:20.3]} 52... Ra1 {[%clk 0:00:14.1]} 53. Rc5 {[%clk 0:00:21.3]} 53...
Rf1+ {[%clk 0:00:15.4]} 54. Ke2 {[%clk 0:00:20.7]} 54... Rh1 {[%clk 0:00:16]}
55. Rd5+ {[%clk 0:00:21.6]} 55... Ke6 {[%clk 0:00:17.6]} 56. Rd3 {[%clk
0:00:23.4]} 56... Rh2+ {[%clk 0:00:17.1]} 57. Kd1 {[%clk 0:00:23.5]} 57... Rb2
{[%clk 0:00:17.9]} 58. Ke1 {[%clk 0:00:22.3]} 58... Rb1+ {[%clk 0:00:17]} 59.
Ke2 {[%clk 0:00:22.9]} 59... Rb2+ {[%clk 0:00:18.4]} 60. Rd2 {[%clk 0:00:23.8]}
60... Rxd2+ {[%clk 0:00:16.3]} 61. Kxd2 {[%clk 0:00:24.6]} 61... Kd6 {[%clk
0:00:17.9]} 62. c4 {[%clk 0:00:24.3]} 62... Kc6 {[%clk 0:00:19.5]} 63. Kd3
{[%clk 0:00:22.9]} 63... Kb6 {[%clk 0:00:20.6]} 64. c5+ {[%clk 0:00:17.9]} 64...
Kb5 {[%clk 0:00:21.9]} 65. Kc3 {[%clk 0:00:15.5]} 65... Kc6 {[%clk 0:00:19.2]}
66. Kc4 {[%clk 0:00:16.6]} 66... Kc7 {[%clk 0:00:20.2]} 67. b5 {[%clk
0:00:17.3]} 67... Kb7 {[%clk 0:00:21.5]} 68. b6 {[%clk 0:00:13.2]} 68... Kc6
{[%clk 0:00:22.3]} 69. Kc3 {[%clk 0:00:13.8]} 69... Kb7 {[%clk 0:00:22.7]} 70.
Kd3 {[%clk 0:00:14.8]} 70... Kc6 {[%clk 0:00:13.9]} 71. Kc4 {[%clk 0:00:15.6]}
71... Kb7 {[%clk 0:00:15.6]} 72. Kd3 {[%clk 0:00:12.4]} 72... Kc6 {[%clk
0:00:16.6]} 73. Kc4 {[%clk 0:00:13.2]} 73... Kb7 {[%clk 0:00:18]} 74. Kd3 {[%clk
0:00:04.1]} 1/2-1/2